bitfinex/quotes_ETHUSD_20230116
["timestamp","ask_amount","ask_price","bid_price","bid_amount"]
[1673844469981,19.06987,1573.2,1573.0,0.00993774]
[1673844470215,12.71315,1573.2,1573.0,0.00993774]
[1673844471253,6.35647,1573.2,1573.0,0.00993774]
[1673844471695,9.35625,1573.3,1573.0,4.49172452]
[1673844471891,3.0,1573.2,1573.0,4.49172452]
[1673844472101,3.0,1573.2,1573.1,1.83717245]
[1673844472541,6.35625,1573.3,1573.1,1.83717245]
[1673844472997,12.84078178,1573.4,1573.2,3.27278678]
[1673844474053,3.0,1573.3,1573.2,3.27278678]
[1673844474575,6.48478178,1573.4,1573.2,3.27278678]
[1673844474739,6.48478178,1573.4,1573.2,3.6449827]
[1673844477362,12.84066178,1573.4,1573.2,3.27278678]
[1673844477574,19.19654178,1573.4,1573.2,3.27278678]
[1673844478855,19.19654178,1573.4,1573.0,27.37443774]
[1673844479070,0.23,1573.3,1573.0,27.37443774]
[1673844479316,12.71294,1573.2,1573.0,27.37443774]
[1673844483525,6.35628,1573.3,1573.2,0.94636554]
[1673844483687,9.35628,1573.3,1573.2,0.94636554]
[1673844484473,6.35628,1573.3,1573.2,0.94636554]
[1673844487223,6.48466178,1573.4,1573.2,4.21915232]
[1673844487400,6.48466178,1573.4,1573.2,4.64106755]
[1673844490306,6.48466178,1573.4,1573.2,4.21915232]
[1673844490518,0.23,1573.3,1573.2,0.9441209]
[1673844490883,25.03011751,1573.3,1573.2,0.9441209]
[1673844492038,22.94451918,1573.3,1573.2,0.9441209]
[1673844493067,24.94451918,1573.3,1573.2,0.9441209]
[1673844493279,22.94451918,1573.3,1573.2,0.9441209]
[1673844493475,23.57811751,1573.3,1573.2,0.9441209]
[1673844494752,22.94451918,1573.3,1573.2,0.9441209]
[1673844495412,22.29818,1573.3,1573.2,0.9441209]
[1673844496012,24.29818,1573.3,1573.2,0.9441209]
[1673844496421,22.29818,1573.3,1573.2,0.9441209]
[1673844498957,24.29818,1573.3,1573.2,0.9441209]
[1673844499379,22.29818,1573.3,1573.2,0.9441209]
[1673844500473,22.94451918,1573.3,1573.2,0.9441209]
[1673844503518,22.29818,1573.3,1573.2,0.9441209]
[1673844504997,24.29818,1573.3,1573.2,0.9441209]
[1673844505207,25.50718,1573.3,1573.2,0.9441209]
[1673844505411,24.15351918,1573.3,1573.2,0.9441209]
[1673844505854,26.15351918,1573.3,1573.2,0.9441209]
[1673844507363,25.50718,1573.3,1573.2,0.9441209]
[1673844507615,26.15351918,1573.3,1573.2,0.9441209]
[1673844508023,24.15351918,1573.3,1573.2,0.9441209]
[1673844508465,25.50718,1573.3,1573.2,0.9441209]
[1673844509606,23.50718,1573.3,1573.2,0.9441209]
[1673844510007,25.50718,1573.3,1573.2,0.9441209]
[1673844510354,23.50718,1573.3,1573.2,0.9441209]
[1673844510521,25.50718,1573.3,1573.2,0.9441209]
[1673844510728,25.50463145,1573.3,1573.2,0.9441209]
[1673844510980,23.50463145,1573.3,1573.2,0.9441209]
[1673844513194,30.8434133,1573.3,1573.2,0.9441209]
[1673844513516,31.48975248,1573.3,1573.2,0.9441209]
[1673844513821,33.48975248,1573.3,1573.2,0.9441209]
[1673844515931,30.63575741,1573.3,1573.2,0.9441209]
[1673844516145,46.20210072,1573.3,1573.0,0.00993774]
[1673844516334,45.92553971,1573.1,1573.0,0.00993774]
[1673844516505,51.21232649,1573.1,1573.0,0.00993774]
[1673844516717,52.492264,1573.1,1573.0,0.00993774]
[1673844517169,51.84592482,1573.1,1573.0,0.00993774]
[1673844517989,48.57313804,1573.1,1573.0,0.00993774]
[1673844518425,45.71807833,1573.1,1573.0,0.00993774]
[1673844518637,30.50207833,1573.1,1573.0,0.00993774]
[1673844518864,29.86848,1573.1,1573.0,0.00993774]
[1673844519239,26.86848,1573.1,1573.0,1.39793774]
[1673844519447,26.86848,1573.1,1573.0,0.00993774]
[1673844520437,6.35649,1573.2,1573.0,1.39793774]
[1673844520647,6.35621,1573.3,1573.0,2.61393774]
[1673844520824,6.48476178,1573.4,1573.0,5.88672452]
[1673844521030,0.12878178,1573.4,1573.1,3.27278678]
[1673844521239,0.12878178,1573.4,1573.2,0.32727868]
[1673844521602,0.12878178,1573.4,1573.2,4.81506546]
[1673844522412,0.12878178,1573.4,1573.3,4.47878678]
[1673844525164,0.12878178,1573.5,1573.3,12.04084678]
[1673844525353,0.12878178,1573.5,1573.4,5.69178678]
[1673844525673,0.12878178,1573.5,1573.4,6.89903834]
[1673844526283,0.12644216,1573.5,1573.4,6.89903834]
[1673844526525,0.12644216,1573.5,1573.4,1.208]
[1673844526779,6.48169216,1573.5,1573.4,1.208]
[1673844526932,0.12644216,1573.5,1573.4,1.208]
[1673844527791,3.12644216,1573.5,1573.3,1.24066883]
[1673844527966,3.12644216,1573.5,1573.3,4.79175036]
[1673844528513,9.48171216,1573.5,1573.3,1.24066883]
[1673844529862,3.12644216,1573.5,1573.3,1.24066883]
[1673844530285,3.12644216,1573.5,1573.3,4.51345561]
[1673844530491,3.12644216,1573.5,1573.4,4.48878678]
[1673844530706,3.12644216,1573.5,1573.4,10.84444678]
[1673844530953,3.12644216,1573.5,1573.4,13.40255234]
[1673844531381,3.12644216,1573.5,1573.4,7.04689234]
[1673844531561,0.12644216,1573.5,1573.4,7.04689234]
[1673844531778,3.12644216,1573.5,1573.4,7.04689234]
[1673844532008,0.12644216,1573.5,1573.4,7.04689234]
[1673844532397,0.12644216,1573.5,1573.4,14.61555234]
[1673844533806,0.12644216,1573.5,1573.4,8.25989234]
[1673844534166,0.12644216,1573.5,1573.4,5.70178678]
[1673844536244,0.12644216,1573.5,1573.4,12.05744678]
[1673844540517,0.12644216,1573.5,1573.4,5.70178678]
[1673844540973,0.12644216,1573.5,1573.4,2.429]
[1673844541182,0.12644216,1573.5,1573.3,1.24066883]
[1673844542570,0.12644216,1573.5,1573.4,4.48778678]
[1673844543247,0.12644216,1573.5,1573.4,10.84344678]
[1673844543580,0.12644216,1573.5,1573.4,4.48778678]
[1673844543793,0.12644216,1573.5,1573.4,10.84344678]
[1673844544225,0.12644216,1573.5,1573.4,11.07944678]
[1673844544411,0.12644216,1573.5,1573.4,13.68558303]
[1673844548629,0.12644216,1573.5,1573.4,13.68265974]
[1673844550720,0.12644216,1573.5,1573.4,7.32699974]
[1673844550931,0.12644216,1573.5,1573.4,4.72086349]
[1673844554508,0.12644216,1573.5,1573.4,1.451]
[1673844554741,0.12644216,1573.5,1573.4,4.72378678]
[1673844558346,1e-08,1573.5,1573.4,13.07944678]
[1673844558855,1e-08,1573.5,1573.4,18.29639934]
[1673844559072,1e-08,1573.5,1573.4,31.00771934]
[1673844559257,1e-08,1573.5,1573.4,32.58445315]
[1673844560184,1e-08,1573.5,1573.4,35.89321847]
[1673844560549,1e-08,1573.5,1573.4,34.94955317]
[1673844560904,1e-08,1573.5,1573.4,35.89321847]
[1673844561151,1e-08,1573.5,1573.4,34.94955317]
[1673844561363,1e-08,1573.5,1573.4,35.89321847]
[1673844561798,1e-08,1573.5,1573.4,34.94955317]
[1673844562189,1e-08,1573.5,1573.4,50.52875317]
[1673844563235,1e-08,1573.5,1573.4,51.47241847]
[1673844565232,0.17435688,1573.8,1573.6,6.35485]
[1673844565581,0.17435688,1573.8,1573.7,4.72178678]
[1673844565898,0.17435688,1573.8,1573.6,4.72378678]
[1673844566280,6.52841688,1573.8,1573.6,1.451]
[1673844566496,6.52841688,1573.8,1573.5,1.44]
[1673844566497,3.23,1573.7,1573.5,1.44]
[1673844566686,15.93926,1573.7,1573.4,15.5792]
[1673844566897,16.58559918,1573.7,1573.4,18.85198678]
[1673844569602,15.93926,1573.7,1573.4,18.85198678]
[1673844574793,15.93926,1573.7,1573.2,6.36409153]
[1673844575049,6.35533,1573.5,1573.2,3.27278678]
[1673844575259,12.71066,1573.5,1573.2,3.27278678]
[1673844580380,12.71066,1573.5,1573.1,18.04262913]
[1673844580574,12.71066,1573.5,1573.1,21.31541591]
[1673844581448,19.06599,1573.5,1573.1,21.31541591]
[1673844582883,19.06599,1573.5,1573.1,18.94988678]
[1673844583096,19.06599,1573.5,1573.1,22.16688857]
[1673844583307,19.06599,1573.5,1573.1,24.5324177]
[1673844583597,19.06599,1573.5,1573.1,25.476083]
[1673844583879,19.06599,1573.5,1573.2,1.57706678]
[1673844584249,19.06599,1573.5,1573.1,27.476083]
[1673844584700,19.06599,1573.5,1573.2,1.57706633]
[1673844584926,19.06599,1573.5,1573.1,26.5324177]
[1673844585211,6.35533,1573.5,1573.2,7.50310339]
[1673844585422,6.35499,1573.6,1573.2,14.64801768]
[1673844585649,3.0,1573.5,1573.2,24.95071093]
[1673844586407,9.35532,1573.5,1573.2,18.59425093]
[1673844586773,3.0,1573.5,1573.2,20.59425093]
[1673844587632,3.0,1573.5,1573.2,26.95067093]
[1673844587868,3.0,1573.5,1573.3,2.69506709]
[1673844592455,3.0,1573.5,1573.2,24.95067093]
[1673844592698,9.35526,1573.5,1573.2,16.2287218]
[1673844593494,15.71052,1573.5,1573.2,10.3063]
[1673844603814,9.35526,1573.5,1573.3,3.27278678]
[1673844604040,3.0,1573.5,1573.3,3.27278678]
[1673844607788,3.0,1573.5,1573.2,19.05202688]
[1673844608004,15.7106,1573.5,1573.2,13.60271146]
[1673844611761,15.7106,1573.5,1573.2,15.96840837]
[1673844612649,15.7106,1573.5,1573.2,16.91207367]
[1673844613055,15.7106,1573.5,1573.3,1.57702505]
[1673844613796,3.0,1573.5,1573.3,4.84981183]
[1673844614170,6.35499,1573.6,1573.4,3.32192989]
[1673844614337,6.35499,1573.6,1573.4,1.74498118]
[1673844615059,6.35499,1573.6,1573.4,5.01776796]
[1673844615308,17.26303,1573.7,1573.4,5.01776796]
[1673844615532,3.0,1573.6,1573.4,5.01776796]
[1673844615840,3.0,1573.6,1573.5,0.5017768]
[1673844616053,3.0,1573.6,1573.4,6.95776796]
[1673844617590,6.35473,1573.7,1573.4,6.95776796]
[1673844618435,11.91029755,1573.8,1573.5,3.27278678]
[1673844619724,9.52857688,1573.8,1573.5,3.29523716]
[1673844621292,11.91029755,1573.8,1573.5,3.27278678]
[1673844621512,18.91097673,1573.8,1573.5,3.27278678]
[1673844623187,18.26463755,1573.8,1573.5,3.27278678]
[1673844623835,0.17435688,1573.8,1573.6,3.27278678]
[1673844624045,0.17435688,1573.8,1573.7,4.71678678]
[1673844630825,1e-08,1573.8,1573.7,17.42568678]
[1673844631040,1e-08,1573.8,1573.7,19.42568678]
[1673844631294,1e-08,1573.8,1573.7,22.97339198]
[1673844632354,1e-08,1573.8,1573.7,4.71678678]
[1673844634667,6.35404001,1573.8,1573.5,1.445]
[1673844634877,6.35404001,1573.8,1573.5,4.71778678]
[1673844634878,12.70808001,1573.8,1573.5,4.71778678]
[1673844635268,19.06212001,1573.8,1573.4,28.8989]
[1673844635601,3.0,1573.7,1573.4,32.17168678]
[1673844635930,6.35485,1573.6,1573.4,32.17168678]
[1673844636081,12.7097,1573.6,1573.4,32.17168678]
[1673844636625,12.7097,1573.6,1573.4,3.2]
[1673844636626,3.0,1573.5,1573.4,3.2]
[1673844637070,9.35525,1573.5,1573.4,3.2]
[1673844638182,15.7105,1573.5,1573.4,3.2]
[1673844643872,9.35525,1573.5,1573.4,3.2]
[1673844644125,3.0,1573.5,1573.4,3.2]
[1673844646706,3.0,1573.5,1573.4,6.47278678]
[1673844646911,3.0,1573.6,1573.4,6.47278678]
[1673844648017,15.70971,1573.6,1573.4,6.47278678]
[1673844651012,9.35485,1573.6,1573.4,6.47278678]
[1673844652831,3.0,1573.6,1573.4,6.47278678]
[1673844653244,3.0,1573.6,1573.4,6.46992799]
[1673844656302,3.0,1573.6,1573.5,3.27278678]
[1673844656516,1e-08,1573.8,1573.6,7.30094756]
[1673844656730,1e-08,1573.8,1573.7,3.27278678]
[1673844657338,1e-08,1573.8,1573.7,4.71678678]
[1673844657602,1e-08,1573.8,1573.7,11.07123678]
[1673844659562,1e-08,1573.8,1573.7,3.27278678]
[1673844668308,6.35404001,1573.8,1573.6,0.94610756]
[1673844668528,6.35404001,1573.8,1573.6,4.21889434]
[1673844669290,3.0,1573.7,1573.6,0.94610756]
[1673844669476,9.35445,1573.7,1573.6,0.94610756]
[1673844672455,15.7089,1573.7,1573.6,0.94610756]
[1673844677335,15.7089,1573.7,1573.6,0.94402096]
[1673844678727,18.09062067,1573.7,1573.6,0.94402096]
[1673844679121,19.41640304,1573.7,1573.6,4.21680774]
[1673844679348,0.21430382,1573.7,1573.6,4.21680774]
[1673844679581,6.35400001,1573.8,1573.6,18.92650774]
[1673844679798,6.35400001,1573.8,1573.7,3.27278678]
[1673844680105,6.35400001,1573.8,1573.7,5.16543755]
[1673844680891,6.35400001,1573.8,1573.7,7.16543755]
[1673844681100,0.15491778,1573.9,1573.7,7.16543755]
[1673844681305,0.15491778,1573.9,1573.8,14.52882678]
[1673844682737,0.15491778,1573.9,1573.8,20.88286678]
[1673844682902,0.15491778,1573.9,1573.8,24.97975353]
[1673844683443,0.1510336,1573.9,1573.8,24.97975353]
[1673844684043,0.1510336,1573.9,1573.8,31.33379353]
[1673844685981,0.1510336,1573.9,1573.8,24.97975353]
[1673844686296,0.1510336,1573.9,1573.8,22.97975353]
[1673844686508,0.1510336,1573.9,1573.8,21.52875353]
[1673844688054,0.1510336,1573.9,1573.8,15.17471353]
[1673844691347,0.1510336,1573.9,1573.8,17.17471353]
[1673844691583,0.1510336,1573.9,1573.8,31.33379353]
[1673844693561,0.1510336,1573.9,1573.8,35.27456498]
[1673844693774,0.1510336,1573.9,1573.8,32.9101022]
[1673844693988,0.1510336,1573.9,1573.8,31.33379353]
[1673844695240,3.36e-05,1573.9,1573.8,43.57165493]
[1673844695453,3.36e-05,1573.9,1573.8,34.36110743]
[1673844696401,0.1867493,1574.2,1573.9,2.0]
[1673844696631,0.1867493,1574.2,1574.1,1.451]
[1673844696803,0.1867493,1574.2,1574.1,4.72378678]
[1673844698718,0.1867493,1574.2,1574.1,13.07661678]
[1673844699666,0.1867493,1574.2,1574.1,19.42944678]
[1673844701500,0.1867493,1574.2,1574.1,20.88044678]
[1673844701846,0.1867493,1574.2,1574.1,25.42167846]
[1673844702057,0.1867493,1574.2,1574.1,23.42167846]
[1673844705313,0.1867493,1574.2,1574.1,33.04907846]
[1673844708873,0.1867493,1574.2,1574.1,36.24907846]
[1673844709311,0.19930103,1574.3,1574.2,2.0]
[1673844709522,0.19930103,1574.3,1574.2,27.58419785]
[1673844709698,0.19930103,1574.3,1574.2,30.85698463]
[1673844710506,0.29975968,1574.5,1574.4,12.70324]
[1673844710635,0.29975968,1574.5,1574.4,20.86302678]
[1673844710846,0.29975968,1574.5,1574.4,25.41093746]
[1673844711375,0.00075968,1574.5,1574.4,27.09193746]
[1673844712370,0.00075968,1574.5,1574.4,25.41093746]
[1673844713112,0.00075968,1574.5,1574.4,35.42243746]
[1673844713633,0.00075968,1574.5,1574.4,41.77405746]
[1673844719151,0.00075968,1574.5,1574.4,38.88705746]
[1673844719577,0.00075968,1574.5,1574.4,3.27278678]
[1673844723145,6.35197968,1574.5,1574.4,3.27278678]
[1673844723724,0.00075968,1574.5,1574.4,3.27278678]
[1673844724410,0.00075968,1574.5,1574.4,9.62440678]
[1673844725909,0.00075968,1574.5,1574.4,3.27278678]
[1673844726155,6.35197968,1574.5,1574.4,3.27278678]
[1673844726541,0.00075968,1574.5,1574.4,3.27278678]
[1673844730453,6.35197968,1574.5,1574.4,3.27278678]
[1673844730767,0.00075968,1574.5,1574.4,3.27278678]
[1673844731171,6.35075968,1574.5,1574.4,3.27278678]
[1673844732765,6.35075968,1574.5,1574.4,3.26931678]
[1673844733350,6.35075968,1574.5,1574.4,5.22267846]
[1673844734203,6.35075968,1574.5,1574.4,3.26931678]
[1673844735188,6.35075968,1574.5,1574.4,9.62093678]
[1673844735873,6.35075968,1574.5,1574.4,15.97255678]
[1673844736090,6.35075968,1574.5,1574.4,17.97255678]
[1673844736527,3.72428011,1574.5,1574.4,17.97255678]
[1673844736733,3.72428011,1574.5,1574.4,22.17540546]
[1673844739817,3.72428011,1574.5,1574.4,20.17540546]
[1673844743017,3.72428011,1574.5,1574.4,23.62640546]
[1673844745458,3.72428011,1574.5,1574.4,21.62640546]
[1673844746220,3.72428011,1574.5,1574.4,20.17540546]
[1673844746378,3.72428011,1574.5,1574.4,3.26931678]
[1673844756752,3.72428011,1574.5,1574.4,3.26539975]
[1673844757796,24.22394011,1574.5,1574.1,30.1137]
[1673844757952,10.79275,1574.4,1574.2,3.27278678]
[1673844758323,10.79275,1574.4,1574.3,3.27278678]
[1673844758324,9.35175,1574.4,1574.3,3.27278678]
[1673844759158,6.10327147,1574.5,1574.3,3.27278678]
[1673844759478,3.72428011,1574.5,1574.4,3.27278678]
[1673844762188,6.10327147,1574.5,1574.4,3.27278678]
[1673844762717,3.72428011,1574.5,1574.4,3.27278678]
[1673844763367,10.07550011,1574.5,1574.4,3.27278678]
[1673844763925,16.42672011,1574.5,1574.3,0.4]
[1673844764084,26.60793147,1574.5,1574.3,3.67278678]
[1673844766550,24.22894011,1574.5,1574.3,3.67278678]
[1673844767702,26.60793147,1574.5,1574.3,3.67278678]
[1673844768475,15.70324,1574.4,1574.3,3.67278678]
[1673844769451,9.35162,1574.4,1574.3,3.67278678]
[1673844770912,3.0,1574.4,1574.3,3.67278678]
[1673844771229,5.17528011,1574.5,1574.3,3.67278678]
[1673844771649,3.72428011,1574.5,1574.3,3.67278678]
[1673844772247,3.72428011,1574.5,1574.3,4.04006546]
[1673844773028,3.72428011,1574.5,1574.3,3.67278678]
[1673844775884,3.72428011,1574.5,1574.4,3.27278678]
[1673844778371,10.07550011,1574.5,1574.4,3.27278678]
[1673844778998,17.87172011,1574.5,1574.3,0.4]
[1673844779209,18.80571147,1574.5,1574.3,3.67278678]
[1673844780069,25.15693147,1574.5,1574.3,3.67278678]
[1673844780304,3.0,1574.4,1574.3,3.67278678]
[1673844780610,9.35162,1574.4,1574.3,3.67066404]
[1673844785249,15.70324,1574.4,1574.3,3.67066404]
[1673844785680,24.43385136,1574.4,1574.3,0.39787726]
[1673844789507,26.14220491,1574.4,1574.3,0.39787726]
[1673844789717,38.79508742,1574.4,1574.3,0.39787726]
[1673844789957,31.15215501,1574.4,1574.3,0.39787726]
[1673844790186,38.02920823,1574.4,1574.3,0.39787726]
[1673844790404,25.41148,1574.1,1573.6,0.04434216]
[1673844790562,1.451,1573.8,1573.6,3.31712894]
[1673844790766,6.35445,1573.7,1573.6,3.32473994]
[1673844791034,5.4083786,1573.7,1573.6,0.05195316]
[1673844792981,11.7628286,1573.7,1573.6,0.05195316]
[1673844793191,11.7628286,1573.7,1573.6,3.25195316]
[1673844794357,11.7628286,1573.7,1573.6,0.05195316]
[1673844794982,18.1172786,1573.7,1573.6,0.05195316]
[1673844795247,19.5582786,1573.7,1573.6,0.05195316]
[1673844795457,22.5582786,1573.7,1573.6,0.05195316]
[1673844797974,16.2038286,1573.7,1573.6,0.05195316]
[1673844799242,8.4083786,1573.7,1573.6,3.32473994]
[1673844799456,3.0,1573.7,1573.6,3.32473994]
[1673844800481,3.0,1573.8,1573.6,3.32473994]
[1673844800928,3.0,1573.8,1573.7,3.27278678]
[1673844801102,3.0,1573.8,1573.7,3.80526077]
[1673844802900,3.0,1573.8,1573.7,11.613016]
[1673844803106,6.99948918,1574.1,1573.7,11.613016]
[1673844803107,3.0,1574.0,1573.7,11.613016]
[1673844803321,3.0,1574.0,1573.8,3.27278678]
[1673844803517,3.0,1574.0,1573.9,3.27278678]
[1673844810072,6.35305,1574.1,1573.9,3.27278678]
[1673844810242,3.0,1574.0,1573.9,0.32727868]
[1673844810451,15.70554,1574.2,1573.7,18.34307922]
[1673844812326,15.70554,1574.2,1573.8,3.27278678]
[1673844812536,15.70554,1574.2,1573.9,3.27278678]
[1673844812783,15.70554,1574.2,1574.0,3.27278678]
[1673844812969,22.05831,1574.2,1574.0,3.27278678]
[1673844813607,22.70464918,1574.2,1574.0,3.27278678]
[1673844813853,0.00360866,1574.0,1573.7,3.1]
[1673844814067,1.45060866,1574.0,1573.7,3.1]
[1673844814228,13.35361918,1573.9,1573.7,3.1]
[1673844816528,19.70725918,1573.9,1573.7,3.1]
[1673844817574,3.64633918,1573.8,1573.7,3.1]
[1673844817837,22.70845918,1573.8,1573.7,3.1]
[1673844818447,22.93845918,1573.8,1573.7,3.1]
[1673844818978,22.93845918,1573.8,1573.7,3.0968618]
[1673844818979,24.37645918,1573.8,1573.7,3.0968618]
[1673844819194,25.14233837,1573.8,1573.7,3.0968618]
[1673844819527,24.37645918,1573.8,1573.7,3.0968618]
[1673844824743,10.00037918,1573.8,1573.7,3.0968618]
[1673844825215,3.0,1573.8,1573.7,6.36964858]
[1673844827178,6.3539,1573.9,1573.7,6.36964858]
[1673844828228,9.35714866,1574.0,1573.8,3.27278678]
[1673844828419,3.0,1573.9,1573.8,4.10975164]
[1673844828756,3.0,1573.9,1573.8,3.27278678]
[1673844830693,22.70725918,1573.9,1573.7,12.5220618]
[1673844830850,25.07969825,1573.9,1573.7,3.0968618]
[1673844831059,25.07969825,1573.9,1573.8,3.27519642]
[1673844831060,3.0,1573.9,1573.8,3.27519642]
[1673844831335,3.00360866,1574.0,1573.8,3.91240224]
[1673844831625,0.00360866,1574.0,1573.9,3.27278678]
[1673844833835,0.00360866,1574.0,1573.8,9.34920964]
[1673844834108,22.08210691,1574.0,1573.8,12.61958678]
[1673844834361,3.0,1573.9,1573.8,12.61958678]
[1673844834557,9.35364,1573.9,1573.8,12.61958678]
[1673844835321,9.35364,1573.9,1573.8,3.27278678]
[1673844836321,15.70728,1573.9,1573.8,3.27278678]
[1673844837830,9.35364,1573.9,1573.8,3.27278678]
[1673844838045,3.0,1573.9,1573.8,3.27278678]
[1673844838731,3.0,1573.9,1573.8,3.90975164]
[1673844838960,3.00360866,1574.0,1573.8,3.90975164]
[1673844839194,3.00360866,1574.0,1573.9,3.27278678]
[1673844841724,0.00360866,1574.0,1573.9,3.27278678]
[1673844843512,0.00360866,1574.0,1573.9,3.26880685]
[1673844844876,0.00360866,1574.0,1573.9,15.97608685]
[1673844845055,0.00360866,1574.0,1573.9,21.32844053]
[1673844845417,0.00360866,1574.0,1573.9,6.62116053]
[1673844845563,0.00360866,1574.0,1573.9,3.26880685]
[1673844846002,0.00360866,1574.0,1573.9,11.62244685]
[1673844846216,0.00360866,1574.0,1573.9,17.97608685]
[1673844846735,0.00360866,1574.0,1573.9,33.53598685]
[1673844848448,0.00360866,1574.0,1573.9,34.97598685]
[1673844849278,0.00360866,1574.0,1573.9,40.42892753]
[1673844850982,0.00360866,1574.0,1573.9,40.43653853]
[1673844852035,0.00360866,1574.0,1573.9,46.79017853]
[1673844852818,0.00360866,1574.0,1573.9,52.18174363]
[1673844854238,0.00360866,1574.0,1573.9,56.12540893]
[1673844854545,0.00360866,1574.0,1573.9,55.18174363]
[1673844855129,0.00360866,1574.0,1573.9,48.37740457]
[1673844856328,0.00360866,1574.0,1573.9,46.80117853]
[1673844857176,0.00360866,1574.0,1573.9,26.64095785]
[1673844857388,0.00360866,1574.0,1573.9,18.83631785]
[1673844859014,8.1339296,1574.3,1573.9,18.83631785]
[1673844859222,14.15727,1574.1,1573.9,18.83631785]
[1673844859548,3.0,1574.0,1573.9,18.83631785]
[1673844859977,9.35324,1574.0,1573.9,18.83631785]
[1673844860511,9.35324,1574.0,1573.9,3.27641785]
[1673844861130,3.0,1574.0,1573.9,3.27641785]
[1673844861538,3.0,1574.1,1573.9,3.27641785]
[1673844861749,3.0,1574.1,1574.0,3.27278678]
[1673844862006,3.0,1574.1,1573.9,0.007611]
[1673844862167,9.35283,1574.1,1573.9,3.28039778]
[1673844863455,3.0,1574.1,1574.0,3.27278678]
[1673844863675,3.0,1574.2,1574.0,3.27278678]
[1673844863843,3.0,1574.2,1574.1,3.27278678]
[1673844866626,9.35243,1574.2,1574.1,3.27278678]
[1673844867762,9.35243,1574.2,1573.9,10.082711]
[1673844868006,12.70792308,1574.1,1573.9,3.28039778]
[1673844868241,9.35324,1574.0,1573.9,3.28039778]
[1673844868447,15.70648,1574.0,1573.9,0.007611]
[1673844868661,23.72872,1574.0,1573.9,0.007611]
[1673844868822,25.68919422,1574.0,1573.9,0.007611]
[1673844869029,27.04285504,1574.0,1573.9,0.007611]
[1673844869262,26.37505918,1574.0,1573.9,0.007611]
[1673844869698,24.37505918,1574.0,1573.9,0.007611]
[1673844870183,9.35324,1574.0,1573.9,3.28039778]
[1673844871192,22.05972,1574.0,1573.9,0.007611]
[1673844871549,15.70648,1574.0,1573.9,0.007611]
[1673844872967,15.70648,1574.0,1573.9,0.00365751]
[1673844874861,22.05972,1574.0,1573.9,0.00365751]
[1673844875019,23.73072,1574.0,1573.9,0.00365751]
[1673844875757,26.37705918,1574.0,1573.9,0.00365751]
[1673844876490,28.74949825,1574.0,1573.9,0.00365751]
[1673844876861,26.37705918,1574.0,1573.9,0.00365751]
[1673844877591,36.71955391,1574.0,1573.9,0.00365751]
[1673844877800,29.23196349,1574.0,1573.9,0.00365751]
[1673844878206,26.37705918,1574.0,1573.9,0.00365751]
[1673844878412,29.23196349,1574.0,1573.9,0.00365751]
[1673844879454,34.64485374,1574.0,1573.9,7.51e-06]
[1673844879683,37.49975805,1574.0,1573.7,3.0968618]
[1673844879855,30.6923725,1573.8,1573.7,3.0968618]
[1673844880065,31.54816,1573.8,1573.7,3.0968618]
[1673844880323,34.19449918,1573.8,1573.7,3.0968618]
[1673844881063,32.19449918,1573.8,1573.7,3.0968618]
[1673844885106,30.74349918,1573.8,1573.7,3.0968618]
[1673844888534,30.09716,1573.8,1573.7,3.0968618]
[1673844889268,15.70808,1573.8,1573.7,3.0968618]
[1673844890266,13.08012444,1573.8,1573.7,3.0968618]
[1673844900623,13.07623553,1573.8,1573.7,3.0968618]
[1673844904719,19.43027553,1573.8,1573.7,3.0968618]
[1673844905298,21.80448803,1573.8,1573.7,3.0968618]
[1673844905822,22.03448803,1573.8,1573.7,3.0968618]
[1673844906298,24.13182721,1573.8,1573.7,3.0968618]
[1673844906507,24.61251902,1573.8,1573.7,3.0968618]
[1673844907328,26.61251902,1573.8,1573.7,3.0968618]
[1673844907518,26.61156589,1573.8,1573.7,3.0968618]
[1673844907730,23.75761471,1573.8,1573.7,3.0968618]
[1673844909539,25.20861471,1573.8,1573.7,3.0968618]
[1673844911985,24.56227553,1573.8,1573.7,3.0968618]
[1673844912194,38.56227553,1573.8,1573.7,3.0968618]
[1673844912523,45.15960498,1573.8,1573.6,0.04434216]
[1673844912739,17.53841208,1573.7,1573.6,0.04434216]
[1673844912911,36.60176208,1573.7,1573.6,0.04434216]
[1673844913105,34.60176208,1573.7,1573.6,0.04434216]
[1673844913777,35.24810126,1573.7,1573.6,0.04434216]
[1673844913962,32.39498918,1573.7,1573.6,0.04434216]
[1673844915010,35.24810126,1573.7,1573.6,0.04434216]
[1673844915235,33.81010126,1573.7,1573.6,0.04434216]
[1673844915633,33.16376208,1573.7,1573.6,0.04434216]
[1673844915850,33.81010126,1573.7,1573.6,0.04434216]
[1673844918265,30.95698918,1573.7,1573.6,0.04434216]
[1673844918471,33.81010126,1573.7,1573.6,0.04434216]
[1673844918809,25.31733144,1573.7,1573.6,3.14434216]
[1673844919895,24.67099226,1573.7,1573.6,3.14434216]
[1673844920116,24.67099226,1573.7,1573.6,0.04434216]
[1673844927786,22.29335,1573.7,1573.6,0.04434216]
[1673844929315,15.9389,1573.7,1573.6,0.04434216]
[1673844929858,18.31654226,1573.7,1573.6,0.04434216]
[1673844930093,15.9389,1573.7,1573.6,0.04434216]
[1673844930669,18.31654226,1573.7,1573.6,0.04434216]
[1673844931029,15.9389,1573.7,1573.6,0.04434216]
[1673844932653,18.31654226,1573.7,1573.6,0.04434216]
[1673844933348,9.35445,1573.7,1573.6,0.04434216]
[1673844933590,9.35445,1573.7,1573.6,1.18934216]
[1673844935126,9.35445,1573.7,1573.6,0.04434216]
[1673844935697,9.35445,1573.7,1573.6,0.04117729]
[1673844937899,9.35445,1573.7,1573.6,1.18617729]
[1673844938139,3.0,1573.7,1573.6,1.18617729]
[1673844938293,3.0,1573.7,1573.6,0.04117729]
[1673844939433,3.0,1573.7,1573.6,1.18617729]
[1673844939691,3.0,1573.7,1573.6,4.58228217]
[1673844941949,3.0,1573.7,1573.6,3.43728217]
[1673844943040,13.35318918,1574.0,1573.7,0.94605664]
[1673844943371,13.35318918,1574.0,1573.7,5.66684342]
[1673844943372,3.0,1573.9,1573.7,5.66684342]
[1673844943688,3.0,1573.9,1573.8,3.27278678]
[1673844947739,22.70725918,1573.9,1573.7,0.94605664]
[1673844949359,25.08490144,1573.9,1573.7,0.94605664]
[1673844949604,22.06092,1573.9,1573.7,0.94605664]
[1673844949841,24.43856226,1573.9,1573.7,0.94605664]
[1673844950006,13.35441918,1573.8,1573.7,0.94605664]
[1673844950225,16.35441918,1573.8,1573.7,0.94605664]
[1673844950419,22.70845918,1573.8,1573.7,0.94605664]
[1673844951389,25.31610144,1573.8,1573.7,0.94605664]
[1673844958229,25.31610144,1573.8,1573.7,0.94339682]